Workbook

Sheet Control
B1: Reinstatement of Part Time Service Following the Preston Ruling
B2: Calculation of Member's Interest on NI Rebate
B4: Inputs
B6: Name
B8: Present month (mm/yyyy) | D8: 2010-07-01
B10: Year | C10: Interest factor | D10: Rebate
B12: 1978/79 | C12: =VLOOKUP(12*YEAR(D$8)+MONTH(D$8)-23715,tab,2,FALSE)/VLOOKUP(LEFT(B12,4)*12+10-23715,tab,2,FALSE)-1 -> 5.184489796
B13: 1979/80 | C13: 4.696240602
B14: 1980/81 | C14: 4.185489391
B15: 1981/82 | C15: 3.72613849
B16: 1982/83 | C16: 3.311895276
B17: 1983/84 | C17: 3.00422833
B18: 1984/85 | C18: 2.704645477
B19: 1985/86 | C19: 2.414150518
B20: 1986/87 | C20: 2.165900543
B21: 1987/88 | C21: 1.936434109
B22: 1988/89 | C22: 1.739963834
B23: 1989/90 | C23: 1.549125168
B24: 1990/91 | C24: 1.35498912
B25: 1991/92 | C25: 1.162717671
B26: 1992/93 | C26: 1.000528123
B27: 1993/94 | C27: 0.8911632551
B28: 1994/95 | C28: 0.7927117842
B30: Output | C30: Total Interest (D) | D30: =SUMPRODUCT(D12:D28,C12:C28) -> 0

Sheet Factor Table (hidden)
A1: =CELL("filename") -> \\gad-ast\AST\PSPS\Preston\Rebate Models\2024\July\[Employee NIC Rebate June 2024.xlsm]Control
A4: Year | B4: Month | C4: Month No | D4: Interest Index
C5: 0 | D5: 1
A6: =ROUNDDOWN((C6+2)/12,0)+1976 -> 1976 | B6: =MOD(C6+2,12)+1 -> 4 | C6: 1 | D6: 1000
A7: =ROUNDDOWN((C7+2)/12,0)+1976 -> 1976 | B7: =MOD(C7+2,12)+1 -> 5 | C7: =C6+1 -> 2 | D7: 1006
A8: 1976 | B8: 6 | C8: =C7+1 -> 3 | D8: 1012
A9: 1976 | B9: 7 | C9: 4 | D9: 1019
A10: 1976 | B10: 8 | C10: 5 | D10: 1025
A11: 1976 | B11: 9 | C11: 6 | D11: 1031
A12: 1976 | B12: 10 | C12: 7 | D12: 1038
A13: 1976 | B13: 11 | C13: 8 | D13: 1044
A14: 1976 | B14: 12 | C14: 9 | D14: 1051
A15: 1977 | B15: 1 | C15: 10 | D15: 1058
A16: 1977 | B16: 2 | C16: 11 | D16: 1065
A17: 1977 | B17: 3 | C17: 12 | D17: 1073
A18: 1977 | B18: 4 | C18: 13 | D18: 1080
A19: 1977 | B19: 5 | C19: 14 | D19: 1088
A20: 1977 | B20: 6 | C20: 15 | D20: 1095
A21: 1977 | B21: 7 | C21: 16 | D21: 1103
A22: 1977 | B22: 8 | C22: 17 | D22: 1111
A23: 1977 | B23: 9 | C23: 18 | D23: 1119
A24: 1977 | B24: 10 | C24: 19 | D24: 1127
A25: 1977 | B25: 11 | C25: 20 | D25: 1135
A26: 1977 | B26: 12 | C26: 21 | D26: 1143
A27: 1978 | B27: 1 | C27: 22 | D27: 1151
A28: 1978 | B28: 2 | C28: 23 | D28: 1158
A29: 1978 | B29: 3 | C29: 24 | D29: 1167
A30: 1978 | B30: 4 | C30: 25 | D30: 1175
A31: 1978 | B31: 5 | C31: 26 | D31: 1183
A32: 1978 | B32: 6 | C32: 27 | D32: 1191
A33: 1978 | B33: 7 | C33: 28 | D33: 1200
A34: 1978 | B34: 8 | C34: 29 | D34: 1208
A35: 1978 | B35: 9 | C35: 30 | D35: 1217
A36: 1978 | B36: 10 | C36: 31 | D36: 1225
A37: 1978 | B37: 11 | C37: 32 | D37: 1234
A38: 1978 | B38: 12 | C38: 33 | D38: 1243
A39: 1979 | B39: 1 | C39: 34 | D39: 1252
A40: 1979 | B40: 2 | C40: 35 | D40: 1259
A41: 1979 | B41: 3 | C41: 36 | D41: 1268
A42: 1979 | B42: 4 | C42: 37 | D42: 1277
A43: 1979 | B43: 5 | C43: 38 | D43: 1285
A44: 1979 | B44: 6 | C44: 39 | D44: 1294
A45: 1979 | B45: 7 | C45: 40 | D45: 1303
A46: 1979 | B46: 8 | C46: 41 | D46: 1312
A47: 1979 | B47: 9 | C47: 42 | D47: 1321
A48: 1979 | B48: 10 | C48: 43 | D48: 1330
A49: 1979 | B49: 11 | C49: 44 | D49: 1339
A50: 1979 | B50: 12 | C50: 45 | D50: 1348
A51: 1980 | B51: 1 | C51: 46 | D51: 1357
A52: 1980 | B52: 2 | C52: 47 | D52: 1368
A53: 1980 | B53: 3 | C53: 48 | D53: 1379
A54: 1980 | B54: 4 | C54: 49 | D54: 1390
A55: 1980 | B55: 5 | C55: 50 | D55: 1402
A56: 1980 | B56: 6 | C56: 51 | D56: 1413
A57: 1980 | B57: 7 | C57: 52 | D57: 1425
A58: 1980 | B58: 8 | C58: 53 | D58: 1437
A59: 1980 | B59: 9 | C59: 54 | D59: 1449
A60: 1980 | B60: 10 | C60: 55 | D60: 1461
A61: 1980 | B61: 11 | C61: 56 | D61: 1473
A62: 1980 | B62: 12 | C62: 57 | D62: 1485
A63: 1981 | B63: 1 | C63: 58 | D63: 1498
A64: 1981 | B64: 2 | C64: 59 | D64: 1509
A65: 1981 | B65: 3 | C65: 60 | D65: 1521
A66: 1981 | B66: 4 | C66: 61 | D66: 1534
A67: 1981 | B67: 5 | C67: 62 | D67: 1546
A68: 1981 | B68: 6 | C68: 63 | D68: 1557
A69: 1981 | B69: 7 | C69: 64 | D69: 1568
A70: 1981 | B70: 8 | C70: 65 | D70: 1580
A71: =ROUNDDOWN((C71+2)/12,0)+1976 -> 1981 | B71: =MOD(C71+2,12)+1 -> 9 | C71: 66 | D71: 1591
A72: 1981 | B72: 10 | C72: =C71+1 -> 67 | D72: 1603
A73: 1981 | B73: 11 | C73: 68 | D73: 1615
A74: 1981 | B74: 12 | C74: 69 | D74: 1629
A75: 1982 | B75: 1 | C75: 70 | D75: 1643
A76: 1982 | B76: 2 | C76: 71 | D76: 1656
A77: 1982 | B77: 3 | C77: 72 | D77: 1670
A78: 1982 | B78: 4 | C78: 73 | D78: 1683
A79: 1982 | B79: 5 | C79: 74 | D79: 1695
A80: 1982 | B80: 6 | C80: 75 | D80: 1707
A81: 1982 | B81: 7 | C81: 76 | D81: 1719
A82: 1982 | B82: 8 | C82: 77 | D82: 1732
A83: 1982 | B83: 9 | C83: 78 | D83: 1744
A84: 1982 | B84: 10 | C84: 79 | D84: 1757
A85: 1982 | B85: 11 | C85: 80 | D85: 1768
A86: 1982 | B86: 12 | C86: 81 | D86: 1779
A87: 1983 | B87: 1 | C87: 82 | D87: 1790
A88: 1983 | B88: 2 | C88: 83 | D88: 1800
A89: 1983 | B89: 3 | C89: 84 | D89: 1811
A90: 1983 | B90: 4 | C90: 85 | D90: 1822
A91: 1983 | B91: 5 | C91: 86 | D91: 1833
A92: 1983 | B92: 6 | C92: 87 | D92: 1844
A93: 1983 | B93: 7 | C93: 88 | D93: 1855
A94: 1983 | B94: 8 | C94: 89 | D94: 1867
A95: 1983 | B95: 9 | C95: 90 | D95: 1880
A96: 1983 | B96: 10 | C96: 91 | D96: 1892
A97: 1983 | B97: 11 | C97: 92 | D97: 1905
A98: 1983 | B98: 12 | C98: 93 | D98: 1918
A99: 1984 | B99: 1 | C99: 94 | D99: 1931
A100: 1984 | B100: 2 | C100: 95 | D100: 1943
A101: 1984 | B101: 3 | C101: 96 | D101: 1956
A102: 1984 | B102: 4 | C102: 97 | D102: 1967
A103: 1984 | B103: 5 | C103: 98 | D103: 1979
A104: 1984 | B104: 6 | C104: 99 | D104: 1990
A105: 1984 | B105: 7 | C105: 100 | D105: 2002
A106: 1984 | B106: 8 | C106: 101 | D106: 2016
A107: 1984 | B107: 9 | C107: 102 | D107: 2031
A108: 1984 | B108: 10 | C108: 103 | D108: 2045
A109: 1984 | B109: 11 | C109: 104 | D109: 2058
A110: 1984 | B110: 12 | C110: 105 | D110: 2071
A111: 1985 | B111: 1 | C111: 106 | D111: 2085
A112: 1985 | B112: 2 | C112: 107 | D112: 2098
A113: 1985 | B113: 3 | C113: 108 | D113: 2113
A114: 1985 | B114: 4 | C114: 109 | D114: 2128
A115: 1985 | B115: 5 | C115: 110 | D115: 2143
A116: 1985 | B116: 6 | C116: 111 | D116: 2158
A117: 1985 | B117: 7 | C117: 112 | D117: 2174
A118: 1985 | B118: 8 | C118: 113 | D118: 2189
A119: 1985 | B119: 9 | C119: 114 | D119: 2204
A120: 1985 | B120: 10 | C120: 115 | D120: 2219
A121: 1985 | B121: 11 | C121: 116 | D121: 2232
A122: 1985 | B122: 12 | C122: 117 | D122: 2247
A123: 1986 | B123: 1 | C123: 118 | D123: 2261
A124: 1986 | B124: 2 | C124: 119 | D124: 2274
A125: 1986 | B125: 3 | C125: 120 | D125: 2289
A126: 1986 | B126: 4 | C126: 121 | D126: 2303
A127: 1986 | B127: 5 | C127: 122 | D127: 2318
A128: 1986 | B128: 6 | C128: 123 | D128: 2333
A129: 1986 | B129: 7 | C129: 124 | D129: 2348
A130: 1986 | B130: 8 | C130: 125 | D130: 2363
A131: 1986 | B131: 9 | C131: 126 | D131: 2377
A132: 1986 | B132: 10 | C132: 127 | D132: 2393
A133: 1986 | B133: 11 | C133: 128 | D133: 2409
A134: 1986 | B134: 12 | C134: 129 | D134: 2426
A135: =ROUNDDOWN((C135+2)/12,0)+1976 -> 1987 | B135: =MOD(C135+2,12)+1 -> 1 | C135: 130 | D135: 2443
A136: 1987 | B136: 2 | C136: =C135+1 -> 131 | D136: 2459
A137: 1987 | B137: 3 | C137: 132 | D137: 2476
A138: 1987 | B138: 4 | C138: 133 | D138: 2494
A139: 1987 | B139: 5 | C139: 134 | D139: 2508
A140: 1987 | B140: 6 | C140: 135 | D140: 2522
A141: 1987 | B141: 7 | C141: 136 | D141: 2536
A142: 1987 | B142: 8 | C142: 137 | D142: 2551
A143: 1987 | B143: 9 | C143: 138 | D143: 2565
A144: 1987 | B144: 10 | C144: 139 | D144: 2580
A145: 1987 | B145: 11 | C145: 140 | D145: 2594
A146: 1987 | B146: 12 | C146: 141 | D146: 2609
A147: 1988 | B147: 1 | C147: 142 | D147: 2624
A148: 1988 | B148: 2 | C148: 143 | D148: 2639
A149: 1988 | B149: 3 | C149: 144 | D149: 2654
A150: 1988 | B150: 4 | C150: 145 | D150: 2668
A151: 1988 | B151: 5 | C151: 146 | D151: 2684
A152: 1988 | B152: 6 | C152: 147 | D152: 2699
A153: 1988 | B153: 7 | C153: 148 | D153: 2715
A154: 1988 | B154: 8 | C154: 149 | D154: 2731
A155: 1988 | B155: 9 | C155: 150 | D155: 2748
A156: 1988 | B156: 10 | C156: 151 | D156: 2765
A157: 1988 | B157: 11 | C157: 152 | D157: 2781
A158: 1988 | B158: 12 | C158: 153 | D158: 2798
A159: 1989 | B159: 1 | C159: 154 | D159: 2815
A160: 1989 | B160: 2 | C160: 155 | D160: 2831
A161: 1989 | B161: 3 | C161: 156 | D161: 2849
A162: 1989 | B162: 4 | C162: 157 | D162: 2865
A163: 1989 | B163: 5 | C163: 158 | D163: 2883
A164: 1989 | B164: 6 | C164: 159 | D164: 2900
A165: 1989 | B165: 7 | C165: 160 | D165: 2918
A166: 1989 | B166: 8 | C166: 161 | D166: 2936
A167: 1989 | B167: 9 | C167: 162 | D167: 2954
A168: 1989 | B168: 10 | C168: 163 | D168: 2972
A169: 1989 | B169: 11 | C169: 164 | D169: 2990
A170: 1989 | B170: 12 | C170: 165 | D170: 3008
A171: 1990 | B171: 1 | C171: 166 | D171: 3026
A172: 1990 | B172: 2 | C172: 167 | D172: 3043
A173: 1990 | B173: 3 | C173: 168 | D173: 3062
A174: 1990 | B174: 4 | C174: 169 | D174: 3080
A175: 1990 | B175: 5 | C175: 170 | D175: 3099
A176: 1990 | B176: 6 | C176: 171 | D176: 3120
A177: 1990 | B177: 7 | C177: 172 | D177: 3144
A178: 1990 | B178: 8 | C178: 173 | D178: 3168
A179: 1990 | B179: 9 | C179: 174 | D179: 3192
A180: 1990 | B180: 10 | C180: 175 | D180: 3217
A181: 1990 | B181: 11 | C181: 176 | D181: 3241
A182: 1990 | B182: 12 | C182: 177 | D182: 3266
A183: 1991 | B183: 1 | C183: 178 | D183: 3291
A184: 1991 | B184: 2 | C184: 179 | D184: 3314
A185: 1991 | B185: 3 | C185: 180 | D185: 3340
A186: 1991 | B186: 4 | C186: 181 | D186: 3362
A187: 1991 | B187: 5 | C187: 182 | D187: 3385
A188: 1991 | B188: 6 | C188: 183 | D188: 3408
A189: 1991 | B189: 7 | C189: 184 | D189: 3432
A190: 1991 | B190: 8 | C190: 185 | D190: 3456
A191: 1991 | B191: 9 | C191: 186 | D191: 3479
A192: 1991 | B192: 10 | C192: 187 | D192: 3503
A193: 1991 | B193: 11 | C193: 188 | D193: 3527
A194: 1991 | B194: 12 | C194: 189 | D194: 3551
A195: 1992 | B195: 1 | C195: 190 | D195: 3576
A196: 1992 | B196: 2 | C196: 191 | D196: 3599
A197: 1992 | B197: 3 | C197: 192 | D197: 3624
A198: 1992 | B198: 4 | C198: 193 | D198: 3648
A199: =ROUNDDOWN((C199+2)/12,0)+1976 -> 1992 | B199: =MOD(C199+2,12)+1 -> 5 | C199: 194 | D199: 3673
A200: 1992 | B200: 6 | C200: =C199+1 -> 195 | D200: 3696
A201: 1992 | B201: 7 | C201: 196 | D201: 3720
A202: 1992 | B202: 8 | C202: 197 | D202: 3744
... 382 more rows
